Cogmind - Beta 13 @@@ ROGUE MODE // 2024.05.08 @ 18:21:34 Player: Lunace Result: Destroyed by G-47 Trooper with Particle Gun Performance ------------- Evolutions (2) 1000 Regions Visited (9) 1800 Robots Destroyed (100) 500 Value Destroyed (4785) 4785 Prototype IDs (28) 560 Alien Tech Used (0) 0 Bonus (2683) 2683 TOTAL SCORE: 11328 Bonus ------- High Alert Combat Kills 942 Follower Combat Kills 459 Entered Garrisons 400 Used RIF Installer 1000 Aligned with FarCom 300 Friendly Fire -418 Cogmind --------- Core Integrity 0/550 Matter 212/300 Energy 100/100 System Corruption 6% Temperature Cool (9) Movement Core (350) Ox6 Location -8/Materials Parts ------- > --- POWER (1) -------- (None) > --- PROPULSION (4) --- (None) > --- UTILITY (4) ------ Large Storage Unit Relay Coupler [NC] (24) Relay Coupler [Sentry] (11) > --- WEAPON (2) ------- (None) > --- INVENTORY (15) --- Light Deuterium Engine Medium Storage Unit Improved Terrain Scanner Hardened Medium Armor Plating Relay Coupler [NC] (25) Relay Coupler [NC] (28) Relay Coupler [NC] (31) Relay Coupler [NC] (29) PSU Rigger Improved Datajack Improved Datajack Power Maul Peak State ------------ > --- POWER ------------ Light Deuterium Engine > --- PROPULSION ------- Improved Aluminum Leg Titanium Leg Makeshift Leg Makeshift Leg > --- UTILITY ---------- Large Storage Unit Modified TNC Improved Medium Armor Plating Improved Medium Armor Plating > --- WEAPON ----------- Bore Cannon Missile Launcher > --- INVENTORY -------- Improved Ion Engine Light Deuterium Engine Medium Storage Unit Improved Medium Armor Plating Improved Medium Armor Plating Improved Medium Armor Plating Relay Coupler [NC] Relay Coupler [Sentry] High-powered Tractor Beam PSU Rigger Proton Missile Launcher Proton Missile Launcher Power Maul Power Maul Heavy Explosive Trap [Rating: 44] Favorites ----------- Power Reinforced Ion Engine Engine Reinforced Ion Engine Power Core Light Nuclear Core Propulsion Light Treads Treads Light Treads Leg Makeshift Leg Utility Improved Light Armor Plating Device Tractor Beam Storage Large Storage Unit Processor Modified TNC Hackware Relay Coupler [Sentry] Protection Improved Light Armor Plating Weapon Power Maul Energy Cannon Particle Cannon Ballistic Gun Gauss Rifle Ballistic Cannon Bore Cannon Launcher Missile Launcher Impact Weapon Power Maul Special Melee Weapon Improved Datajack Build | -11 -10 -10 -10 -9 -8 -8 -8 -8 -8 ------- Run | Yrd Mat Min Exi Min Mat Gar Mat Gar Mat Slots Evolved 4 | . . . . . 4 . . . . Power . | . . . . . . . . . . Propulsion 2 | . . . . . 2 . . . . Utility 2 | . . . . . 2 . . . . Weapon . | . . . . . . . . . . Parts Attached 91 | 8 4 4 . . 17 22 2 12 22 Power 11 | 2 . . . . 3 5 . 1 . Engine 9 | 2 . . . . 3 3 . 1 . Core 2 | . . . . . . 2 . . . Reactor . | . . . . . . . . . . Propulsion 25 | 2 . 2 . . 2 6 1 7 5 Treads 12 | 2 . . . . . . . 5 5 Leg 13 | . . 2 . . 2 6 1 2 . Wheel . | . . . . . . . . . . Hover . | . . . . . . . . . . Flight . | . . . . . . . . . . Utility 24 | 2 . . . . 8 4 1 3 6 Device 5 | 1 . . . . 1 1 . . 2 Storage 3 | 1 . . . . 1 . . . 1 Processor 2 | . . . . . 2 . . . . Hackware 3 | . . . . . 1 . . . 2 Protection 11 | . . . . . 3 3 1 3 1 Artifact . | . . . . . . . . . . Weapon 31 | 2 4 2 . . 4 7 . 1 11 Energy Gun . | . . . . . . . . . . Energy Cannon 2 | . 2 . . . . . . . . Ballistic Gun 7 | 2 . . . . . . . . 5 Ballistic Cannon 4 | . . 1 . . 1 2 . . . Launcher 15 | . 2 1 . . 3 4 . 1 4 Special Weapon . | . . . . . . . . . . Impact Weapon 2 | . . . . . . 1 . . 1 Slashing Weapon . | . . . . . . . . . . Piercing Weapon . | . . . . . . . . . . Special Melee Weapon 1 | . . . . . . . . . 1 Unidentified Prototypes 1 | . . . . . 1 . . . . Parts Lost 21 | . . 1 . . 1 8 . 4 7 Power 2 | . . . . . . 1 . . 1 Propulsion 9 | . . . . . . 5 . 2 2 Utility 5 | . . . . . 1 1 . 1 2 Weapon 5 | . . 1 . . . 1 . 1 2 Highest Loss Streak 6 | . . 1 . . 1 2 . 1 6 To Critical Strikes . | . . . . . . . . . . Average Slot Usage (%) 88 | . 100 100 71 71 78 95 90 89 88 Engine 9 | . 14 14 14 14 9 8 9 9 8 Treads 10 | . 28 7 . . . . . 20 35 Leg 19 | . . 20 28 28 22 33 36 11 . Device 4 | . 14 14 14 14 3 1 . . 4 Storage 9 | . 14 14 14 14 9 9 9 9 9 Processor 6 | . . . . . 15 9 9 4 . Protection 10 | . . . . . 4 16 18 17 11 Ballistic Gun 1 | . 1 . . . . . . . 9 Ballistic Cannon 3 | . . 2 . . 9 4 . . . Launcher 6 | . 10 25 . . 5 4 . 8 3 Impact Weapon 4 | . . . . . . 7 9 9 2 Naked Turns . | . . . . . . . . . . Heaviest Build 54 | 14 19 24 24 11 54 54 41 51 51 Greatest Support 84 | 40 40 40 40 40 70 70 47 80 84 Greatest Overweight (x) 6 | . . . . . . 1 . 1 6 Average Overweight (x) . | . . . . . . . . . . Largest Inventory Capacity 15 | 8 8 8 8 8 15 15 15 15 15 Average Capacity 12 | 6 8 8 8 8 9 15 15 15 15 Most Carried 15 | 2 8 8 8 8 13 15 14 15 15 Average Carried 11 | . 7 7 7 7 6 14 14 14 14 Final Capacity 15 | 8 8 8 8 8 15 15 15 15 15 Final Carried 15 | 2 8 8 7 8 13 15 14 15 12 Class Distribution -------------------- 42% | Scavenger-Mutant 38% | Mutant 10% | Skirmisher 5% | Commander-Mutant Dominant Class ---------------- Mutant | -10/Materials Mutant | -10/Mines Mutant | -10/Exiles Mutant | -9/Mines Skirmisher | -8/Materials Scavenger-Mutant | -8/Garrison Scavenger-Mutant | -8/Materials Scavenger-Mutant | -8/Garrison Scavenger-Mutant | -8/Materials Resources | -11 -10 -10 -10 -9 -8 -8 -8 -8 -8 ----------- Run | Yrd Mat Min Exi Min Mat Gar Mat Gar Mat Matter Collected 2295 | 265 125 33 105 . 188 819 . 237 523 Remotely 532 | 82 125 33 . . . 292 . . . Salvage Created 3502 | 86 296 66 . . 207 1523 . 830 494 Parts 185 | 3 19 9 . . 16 65 . 39 34 Haulers Intercepted . | . . . . . . . . . . Recyclers Shooed . | . . . . . . . . . . Parts Field Recycled . | . . . . . . . . . . Retrieved Matter . | . . . . . . . . . . Parts Self-Destructed . | . . . . . . . . . . Prevented . | . . . . . . . . . . Kills | -11 -10 -10 -10 -9 -8 -8 -8 -8 -8 ------- Run | Yrd Mat Min Exi Min Mat Gar Mat Gar Mat Combat Hostiles Destroyed 89 | . 7 6 . . 9 35 . 20 12 Melee 7 | . . . . . . 5 . 2 . Guns 7 | . . . . . . . . . 7 Cannons 7 | . . . . . 3 4 . . . AOE 60 | . 7 6 . . 6 21 . 15 5 Classes Destroyed 12 | 1 3 1 . . 3 1 . 1 2 Worker 3 | . . . . . 1 . . . 2 Builder 1 | . 1 . . . . . . . . Recycler 2 | 1 1 . . . . . . . . Watcher 4 | . . . . . . 1 . . 3 Swarmer 27 | . 3 6 . . 3 4 . 9 2 Cutter 3 | . . . . . . . . . 3 Grunt 40 | . 4 . . . 2 24 . 9 1 Brawler 3 | . . . . . . . . 2 1 Duelist 3 | . . . . . 1 . . 1 1 Sentry 13 | . . . . . 3 7 . 1 2 Hunter 2 | . . . . . . . . . 2 Zionite 1 | . . 1 . . . . . . . Best Kill Streak 9 | 1 4 3 . . 5 9 . 7 4 Combat Bots Only 9 | . 3 3 . . 4 9 . 7 3 Max Kills in Single Turn 4 | 1 4 2 . . 3 2 . 4 2 Gunslinging . | . . . . . . . . . . Exploded 4 | . 3 2 . . 3 2 . 4 2 Melee 1 | . . . . . . 1 . 1 . Uniques/NPCs Destroyed . | . . . . . . . . . . Combat | -11 -10 -10 -10 -9 -8 -8 -8 -8 -8 -------- Run | Yrd Mat Min Exi Min Mat Gar Mat Gar Mat Hostile Shots Fired 312 | . 16 12 . . 16 115 . 65 88 Missed 92 | . 5 6 . . 7 36 . 17 21 Damage Taken 4429 | . 186 148 . . 226 1351 . 869 1649 Core 587 | . 16 16 . . 32 100 . 60 363 Absorbed by Shields . | . . . . . . . . . . Regen/Repaired (Parts) 48 | . . . . . . . . . 48 Core Remaining (%) 93 | 100 . . . 87 . . . . . Volleys Fired 162 | 2 11 6 . . 20 60 . 16 47 Largest 2 | 2 1 1 . . 1 1 . 1 2 Hottest 64 | 40 33 33 . . 57 57 . 39 64 Shots Fired 205 | 4 11 8 1 . 20 60 . 16 85 Gun 83 | 4 . . . . . . . . 79 Cannon 38 | . . . 1 . 15 22 . . . Launcher 84 | . 11 8 . . 5 38 . 16 6 Special . | . . . . . . . . . . Kinetic 121 | 4 . . 1 . 15 22 . . 79 Thermal . | . . . . . . . . . . Explosive 28 | . 1 4 . . 5 12 . . 6 Electromagnetic 56 | . 10 4 . . . 26 . 16 . Robot Hit Streak 9 | 2 3 3 . . 5 6 . 7 9 Robot Miss Streak 5 | 1 3 1 1 . 2 5 . 1 2 Penetration Max 1 | . . . . . 1 . . . 1 Secondary Targets . | . . . . . . . . . . Shots Hit Robots 150 | 3 5 4 . . 8 49 . 20 61 Core Hits 136 | 2 14 11 . . 12 45 . 23 29 Critical Kills 9 | . . . . . 3 4 . 1 1 Critical Parts Destroyed 16 | . . . . . 1 9 . 5 1 Critical Strikes 28 | . . . . . 5 14 . 7 2 Destroy 10 | . . . . . 5 4 . . 1 Smash 18 | . . . . . . 10 . 7 1 Melee Attacks 98 | . . . . . . 53 . 37 8 Impact 97 | . . . . . . 53 . 37 7 Slashing . | . . . . . . . . . . Piercing . | . . . . . . . . . . Sneak Attacks 3 | . . . . . . 1 . 1 1 Combat Hostiles 1 | . . . . . . . . 1 . Follow-up Attacks . | . . . . . . . . . . Damage Inflicted 8272 | 35 393 414 . . 872 3137 . 1416 2005 Guns 1209 | 35 . . . . . . . . 1174 Cannons 396 | . . . . . 193 203 . . . Explosions 4799 | . 393 414 . . 679 1970 . 816 527 Melee 1864 | . . . . . . 964 . 596 304 Ramming 4 | . . . . . . . . 4 . Kinetic 1605 | 35 . . . . 193 203 . . 1174 Thermal 71 | . 16 . . . . 55 . . . Explosive 2506 | . 170 266 . . 679 864 . . 527 Electromagnetic 2222 | . 207 148 . . . 1051 . 816 . Impact 1864 | . . . . . . 964 . 596 304 Slashing . | . . . . . . . . . . Piercing . | . . . . . . . . . . Highest Corruption 6 | . 3 3 3 3 1 2 2 5 6 Average Corruption 2 | . 2 3 3 3 1 1 2 3 5 Corruption Purged . | . . . . . . . . . . Corruption Blocked . | . . . . . . . . . . Effects 102 | . 2 11 8 4 9 14 . 25 29 Message Errors 26 | . . 3 1 2 5 . . 6 9 Matter Fused 22 | . 2 3 2 1 3 3 . 3 5 Heat Flow Errors 13 | . . . 1 . 1 3 . 7 1 Energy Discharges 13 | . . 2 1 . . 1 . 4 5 Parts Fused 1 | . . . . . . 1 . . . Data Loss (minor) 15 | . . 1 2 1 . 4 . 3 4 Data Loss (major) 3 | . . . . . . 1 . 2 . Misfires 6 | . . 2 1 . . . . . 3 Alerts 3 | . . . . . . 1 . . 2 Overload Shots . | . . . . . . . . . . Overflow Damage 769 | . . 15 . . 42 320 . 211 181 Projectiles . | . . . . . . . . . . Explosions 107 | . . 15 . . 42 18 . . 32 Melee 662 | . . . . . . 302 . 211 149 Knockbacks 7 | . . . . . 2 2 . 3 . Impact 4 | . . . . . . 2 . 2 . Kinetic 2 | . . . . . 2 . . . . Secondary 1 | . . . . . . . . 1 . Self-Inflicted Damage 407 | . 51 100 . . 84 77 . 14 81 Shots 23 | . 3 5 . . 4 7 . 2 2 Rammed . | . . . . . . . . . . Targets Rammed 1 | . . . . . . . . 1 . Kicked 1 | . . . . . . . . 1 . Crushed . | . . . . . . . . . . Highest Temperature 265 | . 2 8 118 . 206 265 . 263 168 Average Temperature 68 | . 2 6 54 . 48 64 . 90 55 Received Heat Transfer 1278 | . 63 . . . 45 630 . 315 225 Siege Activations . | . . . . . . . . . . Robots Corrupted 4 | . . . . . . 3 . 1 . Combat Hostiles 4 | . . . . . . 3 . 1 . Parts Fried 22 | . . 1 . . . 8 . 10 3 Impact Corruptions 21 | . . . . . . 10 . 8 3 Robots Melted . | . . . . . . . . . . Combat Hostiles . | . . . . . . . . . . Parts Melted 1 | . . . . . . 1 . . . Heat Transferred 50 | . 50 . . . . . . . . Parts Sabotaged . | . . . . . . . . . . Parts Stolen . | . . . . . . . . . . Parts Stripped . | . . . . . . . . . . Power Chain Reactions 8 | . 1 1 . . . 4 . 2 . Alert | -11 -10 -10 -10 -9 -8 -8 -8 -8 -8 ------- Run | Yrd Mat Min Exi Min Mat Gar Mat Gar Mat Peak Influence 1604 | 5 197 166 . . 218 1436 700 1604 796 Initial 781 | . 3 76 . . . 69 700 455 781 Average 558 | 1 60 80 . . 47 805 700 1063 653 Maximum Alert Level 5 | . . . . . 1 4 3 5 3 Low Security (%) 38 | 100 100 100 . 100 95 11 . . . Level 1 2 | . . . . . 4 4 . . . Level 2 21 | . . . . . . 21 . 14 81 Level 3 21 | . . . . . . 33 100 42 18 Level 4 16 | . . . . . . 28 . 42 . Level 5 . | . . . . . . . . 1 . High Security . | . . . . . . . . . . Max Security . | . . . . . . . . . . Squads Dispatched 7 | . 2 . . . 1 . . . 4 Investigation 3 | . 2 . . . 1 . . . . Extermination . | . . . . . . . . . . Reinforcement 3 | . . . . . . . . . 3 Assault 1 | . . . . . . . . . 1 Garrison . | . . . . . . . . . . Intercept . | . . . . . . . . . . Searches Triggered . | . . . . . . . . . . Construction Impeded . | . . . . . . . . . . Haulers Reinforced . | . . . . . . . . . . Active Scanning Responses . | . . . . . . . . . . Cargo Convoy Interrupts . | . . . . . . . . . . Alert ID Control Effect 2 | . . . . . . . . . 2 Stealth | -11 -10 -10 -10 -9 -8 -8 -8 -8 -8 --------- Run | Yrd Mat Min Exi Min Mat Gar Mat Gar Mat Distress Signals 6 | . . . . . 3 . . . 3 Communications Jammed . | . . . . . . . . . . Distress Signals . | . . . . . . . . . . Times Spotted 123 | . 10 6 . . 11 39 . 35 22 Peak Tracking Total 6 | . 4 3 . . 3 6 . 4 6 Tactical Retreats 5 | . . . . . . 3 . 1 1 Traps | -11 -10 -10 -10 -9 -8 -8 -8 -8 -8 ------- Run | Yrd Mat Min Exi Min Mat Gar Mat Gar Mat Traps Triggered 18 | . 2 . . . 2 6 . 8 . Indirectly 9 | . 1 . . . . 1 . 7 . Trap Hack Attempts . | . . . . . . . . . . Triggered . | . . . . . . . . . . Disarmed . | . . . . . . . . . . Reprogrammed . | . . . . . . . . . . Reused . | . . . . . . . . . . Traps Extracted . | . . . . . . . . . . Installed . | . . . . . . . . . . Triggered . | . . . . . . . . . . Most Traps Carried 3 | . . 3 3 1 1 1 . . . Machines | -11 -10 -10 -10 -9 -8 -8 -8 -8 -8 ---------- Run | Yrd Mat Min Exi Min Mat Gar Mat Gar Mat Machines Disabled 23 | . . 1 . . . 12 . 7 3 Max in Single Turn 2 | . . 1 . . . 2 . 2 1 Garrison Relay 8 | . . . . . . 5 . 3 . Phase Generator 1 | . . . . . . 1 . . . Machines Repaired . | . . . . . . . . . . Machines Dismantled . | . . . . . . . . . . Machines Sabotaged . | . . . . . . . . . . Overloaded Fab Kills . | . . . . . . . . . . Hacking | -11 -10 -10 -10 -9 -8 -8 -8 -8 -8 --------- Run | Yrd Mat Min Exi Min Mat Gar Mat Gar Mat Machines Accessed 26 | . 1 . 2 . 9 3 1 3 7 Terminals 17 | . 1 . . . 5 3 . 3 5 Fabricators . | . . . . . . . . . . Repair Stations 3 | . . . . . 2 . . . 1 Recycling Units 2 | . . . . . 1 . . . 1 Scanalyzers . | . . . . . . . . . . Garrison Access 2 | . . . . . 1 . 1 . . Total Hacks 65 | . 4 . 2 . 25 7 1 6 20 Successful 31 | . 3 . 2 . 9 1 1 3 12 Failed 34 | . 1 . . . 16 6 . 3 8 Catastrophic 4 | . . . . . 2 1 . 1 . Database Lockouts . | . . . . . . . . . . Manual 31 | . 2 . 1 . 16 . . . 12 Terminals 52 | . 4 . . . 18 7 . 6 17 Fabricators . | . . . . . . . . . . Repair Stations 6 | . . . . . 4 . . . 2 Recycling Units 3 | . . . . . 2 . . . 1 Scanalyzers . | . . . . . . . . . . Garrison Access 2 | . . . . . 1 . 1 . . Terminal Hacks 14 | . 1 . 2 . 3 1 . 3 4 Record 2 | . . . 1 . . . . . 1 Prototype ID Bank 2 | . . . . . 1 . . . 1 Open Door 2 | . . . . . . 1 . 1 . Branch Access Points 1 | . . . . . 1 . . . . Emergency Access Points 1 | . . . . . . . . 1 . Terminal Index 1 | . . . . . 1 . . . . Unreport Threat 1 | . . . . . . . . . 1 Locate Traps 2 | . 1 . . . . . . . 1 Security Stations 1 | . . . . . . . . 1 . Derelict Proto ID Bank 1 | . . . 1 . . . . . . Fabricator Hacks . | . . . . . . . . . . Repair Station Hacks 3 | . . . . . 1 . . . 2 Scan Component 2 | . . . . . 1 . . . 1 Repair 1 | . . . . . . . . . 1 Recycling Unit Hacks . | . . . . . . . . . . Scanalyzer . | . . . . . . . . . . Garrison Access Hacks 2 | . . . . . 1 . 1 . . Unlock Access 2 | . . . . . 1 . 1 . . Unauthorized Hacks 12 | . 2 . . . 4 . . . 6 Terminals 12 | . 2 . . . 4 . . . 6 Assimilate 2 | . 1 . . . 1 . . . . Botnet 9 | . 1 . . . 3 . . . 5 Operators 1 | . . . . . . . . . 1 Fabricators . | . . . . . . . . . . Repair Stations . | . . . . . . . . . . Recycling Units . | . . . . . . . . . . Scanalyzers . | . . . . . . . . . . Garrison Access . | . . . . . . . . . . Data Cores Recovered . | . . . . . . . . . . Used . | . . . . . . . . . . Hacking Detections 23 | . 1 . . . 9 2 1 3 7 Full Trace Events . | . . . . . . . . . . Feedback Events . | . . . . . . . . . . Feedback Blocked . | . . . . . . . . . . Robot Schematics Acquired . | . . . . . . . . . . Robots Built . | . . . . . . . . . . Authchips . | . . . . . . . . . . Time . | . . . . . . . . . . Total Robot Build Rating . | . . . . . . . . . . Part Schematics Acquired . | . . . . . . . . . . Parts Built . | . . . . . . . . . . Authchips . | . . . . . . . . . . Time . | . . . . . . . . . . Total Part Build Rating . | . . . . . . . . . . Parts Repaired 1 | . . . . . . . . . 1 Time 38 | . . . . . . . . . 38 Parts Recycled . | . . . . . . . . . . Recycled Matter . | . . . . . . . . . . Retrieved Matter . | . . . . . . . . . . Retrieved Components . | . . . . . . . . . . Parts Scanalyzed . | . . . . . . . . . . Part Schematics Acquired . | . . . . . . . . . . Parts Damaged . | . . . . . . . . . . Bothacking | -11 -10 -10 -10 -9 -8 -8 -8 -8 -8 ------------ Run | Yrd Mat Min Exi Min Mat Gar Mat Gar Mat Used RIF Installer 2 | . . . . . . 1 . 1 . Alert ID Control 1 | . . . . . . . . 1 . Robots Hacked 1 | . . . . . . . . . 1 Non-combat . | . . . . . . . . . . Combat 1 | . . . . . . . . . 1 Robot Hacks Applied 1 | . . . . . . . . . 1 formatsys_high 1 | . . . . . . . . . 1 Relay Couplers Released 29 | . . . . . . 20 . 9 . Machine Destruction 29 | . . . . . . 20 . 9 . Attached 2 | . . . . . . . . . 2 Fabnet Peak Effective % . | . . . . . . . . . . Robots Rewired 17 | . . . . . . 8 . 9 . Allies Hacked . | . . . . . . . . . . Hacks Repelled . | . . . . . . . . . . Allies | -11 -10 -10 -10 -9 -8 -8 -8 -8 -8 -------- Run | Yrd Mat Min Exi Min Mat Gar Mat Gar Mat Total Allies 22 | . . 2 . . 1 8 . 10 1 Largest Group 6 | . . 2 1 . 1 6 4 6 3 Highest-Rated Group 117 | . . 45 31 . 10 78 52 117 70 Highest-Rated Ally 39 | . . 31 31 . 10 39 16 39 39 Total Orders 3 | . . . . . 1 2 . . . STAY 1 | . . . . . . 1 . . . FOLLOW 1 | . . . . . . 1 . . . EXPLORE 1 | . . . . . 1 . . . . Ally Attacks 104 | . . 5 . . . 15 . 70 14 Total Damage 1359 | . . 43 . . . 171 . 949 196 Kills 17 | . . . . . . 1 . 14 2 Allies Corrupted 1 | . . . . . . . . . 1 Allies Melted . | . . . . . . . . . . Intel | -11 -10 -10 -10 -9 -8 -8 -8 -8 -8 ------- Run | Yrd Mat Min Exi Min Mat Gar Mat Gar Mat Robot Analysis Total . | . . . . . . . . . . Derelict Logs Recovered 4 | . . 2 . 2 . . . . . Drone Launches 1 | . . . . . 1 . . . . Drone Recoveries . | . . . . . . . . . . Exploration | -11 -10 -10 -10 -9 -8 -8 -8 -8 -8 ------------- Run | Yrd Mat Min Exi Min Mat Gar Mat Gar Mat Turns Passed 6840 | 85 254 494 336 170 1369 1729 46 1330 1027 Spaces Moved 3634 | 43 133 320 236 116 704 969 28 613 472 Core 2 | 1 . . . . . . . . 1 Treads 1165 | 42 133 80 . . . . . 439 471 Legs 2467 | . . 240 236 116 704 969 28 174 . Wheels . | . . . . . . . . . . Hover . | . . . . . . . . . . Flight . | . . . . . . . . . . Fastest Speed 50 | 50 160 140 140 140 132 122 122 122 145 Average Speed 142 | 157 160 145 140 140 137 127 122 155 156 Slowest Speed 350 | 160 160 160 140 140 140 195 122 240 350 Overloaded Moves . | . . . . . . . . . . Propulsion Burnouts . | . . . . . . . . . . Robots Hopped . | . . . . . . . . . . Cave-ins Triggered . | . . . . . . . . . . Exploration Rate (%) 49 | 4 32 80 61 37 67 89 7 73 49 Regions Visited 9 Branch Regions 3 Pre-discovered Areas 1 | . . . 1 . . . . . . Known Exits Taken 2 | . . . . . 1 . 1 . . Unknown Exits Taken 5 | 1 1 1 1 1 . . . . . Scrap Searched 2 | . . 1 . 1 . . . . . Spaces Dug 56 | . . . . . 12 42 . 2 . Terrain Destroyed 248 | . 8 26 1 . 45 113 . 7 48 Melee 12 | . . . . . . 10 . 2 . Projectile 9 | . . . 1 . 2 4 . . 2 AOE 227 | . 8 26 . . 43 99 . 5 46 Terrain Rammed . | . . . . . . . . . . Walls Destroyed . | . . . . . . . . . . Machines Disabled . | . . . . . . . . . . Actions | -11 -10 -10 -10 -9 -8 -8 -8 -8 -8 --------- Run | Yrd Mat Min Exi Min Mat Gar Mat Gar Mat Total 4901 | 53 163 345 246 124 1085 1284 39 896 666 Wait 570 | . 4 8 . 8 322 76 8 46 98 Move 3626 | 42 132 319 235 115 704 967 28 612 472 Hop . | . . . . . . . . . . Pick Up 46 | 1 8 3 3 1 11 9 . 4 6 Fast Attach 37 | 7 2 3 . . 7 7 1 5 5 Attach 16 | . . 1 . . 5 3 1 2 4 Detach 5 | . . . 2 . 1 1 . . 1 Swap 38 | 1 2 . . . 5 12 . 5 13 Drop 55 | . 4 5 6 . 10 10 1 7 12 Fire 162 | 2 11 6 . . 20 60 . 16 47 Melee 98 | . . . . . . 53 . 37 8 Ram . | . . . . . . . . . . Kick 1 | . . . . . . . . 1 . Crush . | . . . . . . . . . . Escape Stasis 14 | . . . . . . 14 . . . Rewire 233 | . . . . . . 72 . 161 . Trap . | . . . . . . . . . . Miscellaneous . | . . . . . . . . . . Route ------- -11/Scrapyard -10/Materials (discovered 2 exits: [*Mat] / [*Min]) -10/Mines (discovered 3 exits: [*Mat x2] / *Exi) -10/Exiles -9/Mines -8/Materials (discovered 4 exits: [*Fac x2] / *Sto / Gar) -8/Garrison (discovered 3 exits: *Mat x3) -8/Materials -8/Garrison (discovered 3 exits: [*Fac x2] / *Mat) -8/Materials History --------- Turn | Location | Event 22 | -11/Scrapyard | Discovered new exit (range 14) 86 | -11/Scrapyard | Entered Materials 266 | -10/Materials | Discovered new exit (range 8) 308 | -10/Materials | Build established: Mutant 325 | -10/Materials | Discovered new exit (range 9) 340 | -10/Materials | Entered Mines 435 | -10/Mines | Discovered new exit (range 12) 586 | -10/Mines | Learned Materials interactive machine intel 738 | -10/Mines | A weapon hastily lodged in a ceiling crevice suddenly fell to the ground 757 | -10/Mines | Learned Materials stockpile data 761 | -10/Mines | Discovered new exit (range 3) 812 | -10/Mines | Found a hidden stash of uninstalled traps 827 | -10/Mines | Deemed a non-threat by the Exiles lab entrance 828 | -10/Mines | Discovered new exit (range 5) 834 | -10/Mines | Entered Exiles 834 | -10/Exiles | Accompanied by 1 ally 864 | -10/Exiles | Led the pair of lost Derelicts to a safe place 870 | -10/Exiles | Met 8R-AWN 894 | -10/Exiles | Met EX-HEX 933 | -10/Exiles | Met EX-BIN 948 | -10/Exiles | Aligned with FarCom system 950 | -10/Exiles | Given EX-Vault access code 982 | -10/Exiles | Opened EX-Vault 994 | -10/Exiles | Found PSU Rigger 998 | -10/Exiles | Found Supersonic Drone Bay 1001 | -10/Exiles | Found Modified TNC 1029 | -10/Exiles | Warned to stay clear of 0b10 Research branches 1044 | -10/Exiles | Exiles lab attacked by MAIN.C 1092 | -10/Exiles | Learned location of Zion (-6) 1152 | -10/Exiles | Discovered new exit (range 14) 1170 | -10/Exiles | Stole three prototypes: Modified TNC, Supersonic Drone Bay, PSU Rigger 1170 | -10/Exiles | Entered Mines 1204 | -9/Mines | Received a Rocket Launcher from a helpful Derelict 1212 | -9/Mines | Learned Materials emergency access door positions 1300 | -9/Mines | Learned Materials interactive machine intel 1326 | -9/Mines | Discovered new exit (range 10) 1340 | -9/Mines | Entered Materials 1340 | -8/Materials | Evolved 4 slots: Propulsion x2, Utility x2 1343 | -8/Materials | Loaded intel: 18 interactive machine locations 1452 | -8/Materials | Discovered new exit (range 14) 1454 | -8/Materials | Discovered new exit (range 31) 1832 | -8/Materials | Identified exit to Storage 1851 | -8/Materials | Build established: Skirmisher 2226 | -8/Materials | Build established: Mutant 2492 | -8/Materials | Discovered new exit (range 3) 2610 | -8/Materials | Build established: Skirmisher 2709 | -8/Materials | Identified exit to Garrison 2709 | -8/Materials | Entered Garrison 2755 | -8/Garrison | Triggered checkpoint 2775 | -8/Garrison | Garrison Relay disabled 2905 | -8/Garrison | Triggered checkpoint 2952 | -8/Garrison | Triggered checkpoint 2967 | -8/Garrison | Triggered checkpoint 2991 | -8/Garrison | Triggered checkpoint 3034 | -8/Garrison | Destroyed 9 combat bots 3115 | -8/Garrison | Triggered checkpoint 3321 | -8/Garrison | Spotted B-75 Beast 3321 | -8/Garrison | Spotted B-75 Beast 3363 | -8/Garrison | Discovered new exit (range 10) 3403 | -8/Garrison | Triggered checkpoint 3466 | -8/Garrison | Installed Relay Interface Framework 3480 | -8/Garrison | Garrison Relay disabled 3649 | -8/Garrison | Discovered new exit (range 8) 3753 | -8/Garrison | Build established: Scavenger-Mutant 3886 | -8/Garrison | Phase Generator disabled 3947 | -8/Garrison | Triggered checkpoint 3947 | -8/Garrison | Garrison Relay disabled 4061 | -8/Garrison | Discovered new exit (range 14) 4100 | -8/Garrison | Triggered checkpoint 4221 | -8/Garrison | Triggered checkpoint 4247 | -8/Garrison | Garrison Relay disabled 4438 | -8/Garrison | Entered Materials 4438 | -8/Materials | Accompanied by 4 allies 4439 | -8/Materials | Loaded intel: 19 interactive machine locations 4484 | -8/Materials | Identified exit to Garrison 4484 | -8/Materials | Entered Garrison 4484 | -8/Garrison | Accompanied by 4 allies 4510 | -8/Garrison | Triggered checkpoint 4635 | -8/Garrison | Triggered checkpoint 4643 | -8/Garrison | Triggered checkpoint 4711 | -8/Garrison | Triggered checkpoint 4762 | -8/Garrison | Destroyed 7 combat bots 5153 | -8/Garrison | Rescued a captive Derelict 5209 | -8/Garrison | Garrison Relay disabled 5234 | -8/Garrison | Triggered checkpoint 5300 | -8/Garrison | Triggered checkpoint 5358 | -8/Garrison | Discovered new exit (range 7) 5407 | -8/Garrison | Build established: Commander-Mutant 5436 | -8/Garrison | Triggered checkpoint 5555 | -8/Garrison | Garrison Relay disabled 5595 | -8/Garrison | Expanded RIF knowledge: Alert ID Control 5726 | -8/Garrison | Build established: Scavenger-Mutant 5740 | -8/Garrison | Learned Factory security intel 5778 | -8/Garrison | Discovered new exit (range 5) 5790 | -8/Garrison | Triggered checkpoint 5806 | -8/Garrison | Discovered new exit (range 5) 5814 | -8/Garrison | Entered Materials 5814 | -8/Materials | Accompanied by 3 allies 6214 | -8/Materials | First assault squad dispatched 6464 | -8/Materials | Repaired Missile Launcher 6819 | -8/Materials | Core integrity fell below 50% 6837 | -8/Materials | Core integrity fell below 20% 6841 | -8/Materials | Destroyed by G-47 Trooper with Particle Gun Last Messages --------------- 06821_ Missile Launcher destroyed. 06822_ K-01 Serf collects debris. 06822_ Imp. Heat Sink destroyed. 06825_ U-05 Engineer builds a Wall. 06827_ Penetrated by Slug. 06827_ Adv. Treads destroyed. 06827_ K-01 Serf collects debris. 06829_ Adv. Treads destroyed. 06829_ Power Maul blasted off. 06829_ Knocked back. 06830_ K-01 Serf collects debris. 06830_ Acquired Hvy. Assault Rifle. 06831_ Knocked back. 06831_ K-01 Serf system corrupted by crushing effect. 06832_ Extracted 100 matter. 06832_ K-01 Serf system terminally corrupted. 06838_ The unstable cave ceiling collapses. 06838_ 15 Matter crushed. 06838_ Hvy. Assault Rifle destroyed. Map ----- +----------------------------------------------------+ | ????????????????????????????????? | | ????????????????????????????????? | | ????????????????????????????????? | | ????????????????????????????????? | | ????????????????????????????????? | | ????????????????????????????????? | | ????????????????????????????????? | | ????????????????????????????????? | | ???????????????????????? ???? | | ???????????????????????? ???? | | ???????????????????????? ???? | | ???????????????????????? ???? | | ?????????? ????????????? ???? | | ?????????? ?????????????# #???? | | ?????????? ?????????????# #???? | | ?????????? ?????????????# g #???? | | ?????????? ?????????????# g#???? | | ?????????? ?????????????# ###?? | | ?????????? ????########## ##? | | ?????????# #???# #? | | ?????????# #???# #? | | ?????????# #???# *= #? | | ?????????# #???# !=/H #? | | ?????????# #???# %=== #? | | #######??# #???# % % =[% #? | | #??# #???# %!@=[ #? | | #### ##### * #*%= ###? | | + +[= %! ##??? | | #### #####+#;###+## #???? | | #??# #???#%## #???? | | #??# #???#=## # #???? | | #??# #???# ## #???? | | #??# #???# ### #???? | | #+#####??# ?? #???? | | #############+### ##???? | | # !!! #??????## ## ????? | | # !!! #???????##?Y ""???? | | # !!! #??????????# """??? | | # #??????????# "????? | | # #??????????? ????? | | + """ """#??????????? "????? | | # """ Y"###########? ?????? | | ## "" """# ! #?????????? | | # ## # "T" #?????????? | | # ### ####### """ #?????????? | | # #?###?????# """ #?????????? | | #+#########?# """ [ #?????????? | | # #?# #?????????? | | # #?#####/##########????? | | # #???# # #????? | +----------------------------------------------------+ Best States ------------- Heat Dissipation 45 Energy Generation 14 Energy Capacity 265 Matter Stores 300 Matter Capacity 300 Sight Range 16 Terrain Scan Density 10 Armor Coverage 450 Evasion (%) 55 Recoil Reduction 4 Defensive Hacking 10 Relay Coupler Types 2 Relay Coupler Value 48 Item Schematics ----------------- None Robot Schematics ------------------ None Fabricated ------------ Nothing Alien Tech Used ----------------- None Achievements -------------- None Challenges ------------ None Game ------ Seed SystemBlastMembrane Manual? 0 Play Time 00:52:19 Cumulative 165.8 hours Start 2024.05.08 @ 17:30:28 End 2024.05.08 @ 18:21:34 Sessions 1 Manual Loads 0 Difficulty Rogue Special Mode None Game No. 160 Rogue 155 Adventurer 5 Explorer 0 Win Type - Total 3 Types 2/0/0/1/0/0/0/0/0 Lore% 53 Gallery% 72 Achievement% 55 Wizard Run 0 Options --------- Layout 1 ASCII 0 Keyboard 0 Movement Arrows Keybinds 0 Fullscreen 1 Font 24/Terminus Map View 50x35 Zoom Use 0% Tactical HUD 1 Map Filters NONE Filters NONE Steam 1 RUN: 3932f56c-26b0-4b12-a2be-7949dd2d8b6e